[Event "Titled Tuesday Blitz April 18 Early 2023"]
[White "Bluebaum, Matthias"]
[Black "Aradhya, Garg"]
[WhiteFideId "24651516"]
[BlackFideId "25006746"]
[WhiteElo "2638"]
[BlackElo "2263"]
[Result "1-0"]
[Round "05"]
[TimeControl "180+2"]
[Date "2023.04.18"]
[WhiteClock "0:00:26"]
[BlackClock "0:00:02"]

1. d4 {[%clk 0:03:00]}  d5 {[%clk 0:03:00]} 2. c4 {[%clk 0:03:01]}  c6 {[%clk 0:03:01]} 3. Nf3 {[%clk 0:03:01]}  Nf6 {[%clk 0:03:01]} 4. Nc3 {[%clk 0:03:02]}  dxc4 {[%clk 0:03:01]} 5. e4 {[%clk 0:03:02]}  b5 {[%clk 0:03:01]} 6. Qc2 {[%clk 0:03:03]}  Bg4 {[%clk 0:02:56]} 7. a4 {[%clk 0:03:02]}  b4 {[%clk 0:02:31]} 8. Ne2 {[%clk 0:03:01]}  b3 {[%clk 0:02:31]} 9. Qxc4 {[%clk 0:03:00]}  Nxe4 {[%clk 0:02:31]} 10. Qxb3 {[%clk 0:03:00]}  Nd7 {[%clk 0:02:27]} 11. Qe3 {[%clk 0:02:44]}  Nd6 {[%clk 0:02:11]} 12. Ng3 {[%clk 0:02:33]}  Bxf3 {[%clk 0:02:05]} 13. Qxf3 {[%clk 0:02:32]}  Qa5+ {[%clk 0:02:03]} 14. Bd2 {[%clk 0:02:32]}  Qd5 {[%clk 0:02:04]} 15. Be2 {[%clk 0:02:24]}  g6 {[%clk 0:02:04]} 16. O-O {[%clk 0:02:18]}  Bg7 {[%clk 0:02:02]} 17. Bc3 {[%clk 0:02:18]}  O-O {[%clk 0:02:00]} 18. Qd3 {[%clk 0:02:14]}  Rac8 {[%clk 0:01:48]} 19. Bf3 {[%clk 0:02:13]}  Qc4 {[%clk 0:01:43]} 20. Qe3 {[%clk 0:02:11]}  Rfe8 {[%clk 0:01:37]} 21. Rfc1 {[%clk 0:02:01]}  Nb6 {[%clk 0:01:27]} 22. Qd2 {[%clk 0:01:21]}  Nd5 {[%clk 0:01:01]} 23. Ne2 {[%clk 0:01:18]}  Qb3 {[%clk 0:00:56]} 24. Ra3 {[%clk 0:01:17]}  Qb7 {[%clk 0:00:56]} 25. Ba5 {[%clk 0:01:14]}  e5 {[%clk 0:00:52]} 26. dxe5 {[%clk 0:01:12]}  Bxe5 {[%clk 0:00:52]} 27. b4 {[%clk 0:01:08]}  Nb6 {[%clk 0:00:34]} 28. Qa2 {[%clk 0:01:04]}  Qd7 {[%clk 0:00:34]} 29. Rd3 {[%clk 0:00:58]}  Qf5 {[%clk 0:00:25]} 30. Rdd1 {[%clk 0:00:58]}  Qd7 {[%clk 0:00:06]} 31. Ng3 {[%clk 0:00:55]}  Kg7 {[%clk 0:00:04]} 32. Ne4 {[%clk 0:00:55]}  Qe7 {[%clk 0:00:05]} 33. Nc5 {[%clk 0:00:47]}  Nf5 {[%clk 0:00:04]} 34. Bg4 {[%clk 0:00:44]}  Rcd8 {[%clk 0:00:02]} 35. Bxf5 {[%clk 0:00:44]}  gxf5 {[%clk 0:00:02]} 36. g3 {[%clk 0:00:45]}  Rxd1+ {[%clk 0:00:02]} 37. Rxd1 {[%clk 0:00:46]}  Rd8 {[%clk 0:00:03]} 38. Rxd8 {[%clk 0:00:42]}  Qxd8 {[%clk 0:00:04]} 39. Qe2 {[%clk 0:00:43]}  Qd5 {[%clk 0:00:03]} 40. Nd3 {[%clk 0:00:40]}  Bd6 {[%clk 0:00:03]} 41. b5 {[%clk 0:00:39]}  cxb5 {[%clk 0:00:03]} 42. Bc3+ {[%clk 0:00:39]}  Kg6 {[%clk 0:00:02]} 43. axb5 {[%clk 0:00:32]}  Qe4 {[%clk 0:00:02]} 44. Qd1 {[%clk 0:00:30]}  Nd5 {[%clk 0:00:02]} 45. Bb2 {[%clk 0:00:26]} 1-0


[Site "https://www.chess.com"]

[Event "Titled Tuesday Blitz April 18 Early 2023"]
[White "Manukyan, Sargis A."]
[Black "Hakobyan, Aram"]
[WhiteFideId "13303970"]
[BlackFideId "13306677"]
[WhiteElo "2187"]
[BlackElo "2584"]
[Result "1-0"]
[Round "05"]
[TimeControl "180+2"]
[Date "2023.04.18"]
[WhiteClock "0:00:05"]
[BlackClock "0:00:03"]

1. d4 {[%clk 0:03:00]}  g6 {[%clk 0:02:59]} 2. c4 {[%clk 0:03:00]}  Bg7 {[%clk 0:02:59]} 3. Nc3 {[%clk 0:03:01]}  c5 {[%clk 0:02:59]} 4. e3 {[%clk 0:02:51]}  Nf6 {[%clk 0:02:59]} 5. Nf3 {[%clk 0:02:51]}  O-O {[%clk 0:02:59]} 6. d5 {[%clk 0:02:51]}  d6 {[%clk 0:02:58]} 7. Be2 {[%clk 0:02:49]}  e6 {[%clk 0:02:53]} 8. e4 {[%clk 0:02:46]}  Re8 {[%clk 0:02:51]} 9. O-O {[%clk 0:02:46]}  exd5 {[%clk 0:02:50]} 10. exd5 {[%clk 0:02:46]}  Bf5 {[%clk 0:02:50]} 11. Bd3 {[%clk 0:02:44]}  Bg4 {[%clk 0:02:49]} 12. h3 {[%clk 0:02:43]}  Bxf3 {[%clk 0:02:49]} 13. Qxf3 {[%clk 0:02:43]}  Nbd7 {[%clk 0:02:50]} 14. Bf4 {[%clk 0:02:41]}  Ne5 {[%clk 0:02:49]} 15. Bxe5 {[%clk 0:02:41]}  Rxe5 {[%clk 0:02:50]} 16. Rfe1 {[%clk 0:02:41]}  Nd7 {[%clk 0:02:50]} 17. Rxe5 {[%clk 0:02:39]}  Nxe5 {[%clk 0:02:51]} 18. Qe2 {[%clk 0:02:37]}  Qb6 {[%clk 0:02:45]} 19. Rb1 {[%clk 0:01:25]}  Kf8 {[%clk 0:02:38]} 20. Qc2 {[%clk 0:01:20]}  Re8 {[%clk 0:02:36]} 21. b3 {[%clk 0:01:15]}  Qd8 {[%clk 0:02:29]} 22. Bf1 {[%clk 0:01:12]}  f5 {[%clk 0:02:15]} 23. Rd1 {[%clk 0:01:02]}  a6 {[%clk 0:01:51]} 24. Qc1 {[%clk 0:00:59]}  Qh4 {[%clk 0:01:50]} 25. g3 {[%clk 0:00:54]}  Qh5 {[%clk 0:01:28]} 26. Bg2 {[%clk 0:00:42]}  Nf3+ {[%clk 0:01:26]} 27. Kh1 {[%clk 0:00:41]}  Nd4 {[%clk 0:01:20]} 28. Re1 {[%clk 0:00:39]}  Rxe1+ {[%clk 0:01:14]} 29. Qxe1 {[%clk 0:00:40]}  f4 {[%clk 0:01:15]} 30. gxf4 {[%clk 0:00:35]}  Qf5 {[%clk 0:01:10]} 31. Qe4 {[%clk 0:00:33]}  Qf6 {[%clk 0:01:08]} 32. Ne2 {[%clk 0:00:33]}  Nf5 {[%clk 0:01:04]} 33. Kh2 {[%clk 0:00:24]}  Bh6 {[%clk 0:01:03]} 34. Ng3 {[%clk 0:00:23]}  Nd4 {[%clk 0:01:01]} 35. Ne2 {[%clk 0:00:17]}  Nf5 {[%clk 0:00:55]} 36. Ng3 {[%clk 0:00:17]}  Nh4 {[%clk 0:00:55]} 37. Ne2 {[%clk 0:00:17]}  Kg7 {[%clk 0:00:52]} 38. a4 {[%clk 0:00:13]}  Nf5 {[%clk 0:00:46]} 39. Bf3 {[%clk 0:00:12]}  Nd4 {[%clk 0:00:40]} 40. Nxd4 {[%clk 0:00:12]}  Bxf4+ {[%clk 0:00:41]} 41. Kg2 {[%clk 0:00:12]}  cxd4 {[%clk 0:00:41]} 42. Qe6 {[%clk 0:00:11]}  Qg5+ {[%clk 0:00:42]} 43. Qg4 {[%clk 0:00:11]}  Qf6 {[%clk 0:00:38]} 44. Qd7+ {[%clk 0:00:11]}  Kh6 {[%clk 0:00:37]} 45. Qxb7 {[%clk 0:00:11]}  d3 {[%clk 0:00:38]} 46. Qc8 {[%clk 0:00:10]}  d2 {[%clk 0:00:37]} 47. Qg4 {[%clk 0:00:10]}  a5 {[%clk 0:00:24]} 48. Qe6 {[%clk 0:00:09]}  Qg5+ {[%clk 0:00:21]} 49. Qg4 {[%clk 0:00:10]}  Qe5 {[%clk 0:00:21]} 50. Qh4+ {[%clk 0:00:09]}  Kg7 {[%clk 0:00:22]} 51. Qg4 {[%clk 0:00:09]}  h5 {[%clk 0:00:22]} 52. Qd7+ {[%clk 0:00:09]}  Kh6 {[%clk 0:00:22]} 53. Qe6 {[%clk 0:00:08]}  Qg5+ {[%clk 0:00:22]} 54. Kf1 {[%clk 0:00:08]}  Be5 {[%clk 0:00:19]} 55. Qf7 {[%clk 0:00:06]}  Qh4 {[%clk 0:00:18]} 56. Kg2 {[%clk 0:00:05]}  Qd4 {[%clk 0:00:16]} 57. Bd1 {[%clk 0:00:05]}  Bf6 {[%clk 0:00:09]} 58. Bc2 {[%clk 0:00:04]}  Kg5 {[%clk 0:00:02]} 59. Qxg6+ {[%clk 0:00:04]}  Kf4 {[%clk 0:00:03]} 60. Qf5# {[%clk 0:00:05]} 1-0


[Site "https://www.chess.com"]

[Event "Titled Tuesday Blitz April 18 Early 2023"]
[White "Colas, Joshua"]
[Black "Kramnik, Vladimir"]
[WhiteFideId "2044447"]
[BlackFideId "4101588"]
[WhiteElo "2347"]
[BlackElo "2712"]
[Result "0-1"]
[Round "05"]
[TimeControl "180+2"]
[Date "2023.04.18"]
[WhiteClock "0:00:06"]
[BlackClock "0:00:32"]

1. Nf3 {[%clk 0:02:51]}  d5 {[%clk 0:02:58]} 2. c4 {[%clk 0:02:49]}  c6 {[%clk 0:02:54]} 3. cxd5 {[%clk 0:02:46]}  cxd5 {[%clk 0:02:54]} 4. d4 {[%clk 0:02:46]}  Bf5 {[%clk 0:02:50]} 5. Nc3 {[%clk 0:02:46]}  e6 {[%clk 0:02:49]} 6. Bf4 {[%clk 0:02:43]}  Nc6 {[%clk 0:02:44]} 7. e3 {[%clk 0:02:41]}  Bb4 {[%clk 0:02:26]} 8. Qb3 {[%clk 0:02:39]}  Nge7 {[%clk 0:02:25]} 9. a3 {[%clk 0:02:35]}  Bxc3+ {[%clk 0:02:20]} 10. Qxc3 {[%clk 0:02:36]}  O-O {[%clk 0:02:18]} 11. Be2 {[%clk 0:02:29]}  Rc8 {[%clk 0:02:18]} 12. O-O {[%clk 0:02:29]}  f6 {[%clk 0:02:11]} 13. Qd2 {[%clk 0:02:14]}  Na5 {[%clk 0:02:08]} 14. Qd1 {[%clk 0:01:52]}  Bc2 {[%clk 0:02:04]} 15. Qe1 {[%clk 0:01:42]}  Nb3 {[%clk 0:02:04]} 16. Ra2 {[%clk 0:01:43]}  Ng6 {[%clk 0:01:56]} 17. Bg3 {[%clk 0:01:41]}  Qb6 {[%clk 0:01:53]} 18. a4 {[%clk 0:01:38]}  Qa5 {[%clk 0:01:23]} 19. Qxa5 {[%clk 0:01:35]}  Nxa5 {[%clk 0:01:23]} 20. b4 {[%clk 0:01:36]}  Nb3 {[%clk 0:01:15]} 21. Rb2 {[%clk 0:01:31]}  Rc3 {[%clk 0:01:15]} 22. Ne1 {[%clk 0:00:58]}  Nc1 {[%clk 0:01:14]} 23. Rxc2 {[%clk 0:00:30]}  Rxc2 {[%clk 0:01:13]} 24. Nxc2 {[%clk 0:00:31]}  Nxe2+ {[%clk 0:01:13]} 25. Kh1 {[%clk 0:00:32]}  Rc8 {[%clk 0:01:13]} 26. Na3 {[%clk 0:00:29]}  a6 {[%clk 0:01:07]} 27. Bd6 {[%clk 0:00:18]}  Rc3 {[%clk 0:01:00]} 28. Nb1 {[%clk 0:00:18]}  Rc2 {[%clk 0:00:56]} 29. a5 {[%clk 0:00:17]}  Nh4 {[%clk 0:00:53]} 30. Bc5 {[%clk 0:00:13]}  Nf5 {[%clk 0:00:50]} 31. g3 {[%clk 0:00:08]}  h5 {[%clk 0:00:46]} 32. Rd1 {[%clk 0:00:06]}  g5 {[%clk 0:00:32]} 0-1


[Site "https://www.chess.com"]

[Event "Titled Tuesday Blitz April 18 Early 2023"]
[White "Ibarra Jerez, Jose Carlos"]
[Black "Nouri, Alekhine"]
[WhiteFideId "2226332"]
[BlackFideId "5216184"]
[WhiteElo "2638"]
[BlackElo "2151"]
[Result "1-0"]
[Round "05"]
[TimeControl "180+2"]
[Date "2023.04.18"]
[WhiteClock "0:02:02"]
[BlackClock "0:01:23"]

1. e4 {[%clk 0:02:59]}  c5 {[%clk 0:03:00]} 2. Nf3 {[%clk 0:02:58]}  d6 {[%clk 0:02:55]} 3. d4 {[%clk 0:02:59]}  cxd4 {[%clk 0:02:56]} 4. Nxd4 {[%clk 0:02:59]}  Nf6 {[%clk 0:02:55]} 5. Nc3 {[%clk 0:03:00]}  a6 {[%clk 0:02:54]} 6. Be3 {[%clk 0:03:00]}  e5 {[%clk 0:02:49]} 7. Nf3 {[%clk 0:03:00]}  Be7 {[%clk 0:02:49]} 8. Bc4 {[%clk 0:03:00]}  O-O {[%clk 0:02:49]} 9. O-O {[%clk 0:02:59]}  Be6 {[%clk 0:02:47]} 10. Qe2 {[%clk 0:02:58]}  Qc8 {[%clk 0:02:40]} 11. Bb3 {[%clk 0:02:57]}  h6 {[%clk 0:02:38]} 12. Nh4 {[%clk 0:02:50]}  Kh7 {[%clk 0:02:31]} 13. Rad1 {[%clk 0:02:45]}  Nbd7 {[%clk 0:02:25]} 14. Nf5 {[%clk 0:02:40]}  Bxf5 {[%clk 0:02:23]} 15. exf5 {[%clk 0:02:41]}  b5 {[%clk 0:02:19]} 16. g4 {[%clk 0:02:40]}  Nc5 {[%clk 0:02:18]} 17. Bd5 {[%clk 0:02:26]}  Rb8 {[%clk 0:02:06]} 18. Bg2 {[%clk 0:02:24]}  b4 {[%clk 0:02:03]} 19. Nd5 {[%clk 0:02:24]}  Nxd5 {[%clk 0:02:03]} 20. Bxd5 {[%clk 0:02:25]}  Nd7 {[%clk 0:02:04]} 21. Bc4 {[%clk 0:02:17]}  a5 {[%clk 0:02:00]} 22. b3 {[%clk 0:02:16]}  Nf6 {[%clk 0:01:59]} 23. Qf3 {[%clk 0:02:09]}  Rd8 {[%clk 0:01:29]} 24. Bxf7 {[%clk 0:02:07]}  Qxc2 {[%clk 0:01:23]} 25. g5 {[%clk 0:02:02]} 1-0


[Site "https://www.chess.com"]

[Event "Titled Tuesday Blitz April 18 Early 2023"]
[White "Paravyan, David"]
[Black "Dehtiarov, Roman"]
[WhiteFideId "4194985"]
[BlackFideId "14186640"]
[WhiteElo "2563"]
[BlackElo "2189"]
[Result "0-1"]
[Round "05"]
[TimeControl "180+2"]
[Date "2023.04.18"]
[WhiteClock "0:00:01"]
[BlackClock "0:00:02"]

1. e4 {[%clk 0:03:00]}  e5 {[%clk 0:02:58]} 2. Nf3 {[%clk 0:03:01]}  Nc6 {[%clk 0:02:58]} 3. Bb5 {[%clk 0:03:01]}  a6 {[%clk 0:02:59]} 4. Ba4 {[%clk 0:03:02]}  Nf6 {[%clk 0:02:59]} 5. O-O {[%clk 0:03:03]}  Be7 {[%clk 0:02:59]} 6. d3 {[%clk 0:03:03]}  b5 {[%clk 0:02:59]} 7. Bb3 {[%clk 0:03:03]}  O-O {[%clk 0:02:59]} 8. Nc3 {[%clk 0:03:03]}  d6 {[%clk 0:02:59]} 9. a3 {[%clk 0:03:04]}  Bg4 {[%clk 0:02:59]} 10. Be3 {[%clk 0:03:04]}  Nd4 {[%clk 0:02:59]} 11. Bxd4 {[%clk 0:03:05]}  exd4 {[%clk 0:03:00]} 12. Nd5 {[%clk 0:03:05]}  c6 {[%clk 0:02:58]} 13. Nxe7+ {[%clk 0:03:04]}  Qxe7 {[%clk 0:02:59]} 14. h3 {[%clk 0:03:05]}  Bxf3 {[%clk 0:02:56]} 15. Qxf3 {[%clk 0:03:05]}  Rac8 {[%clk 0:02:51]} 16. Rae1 {[%clk 0:03:06]}  Nd7 {[%clk 0:02:50]} 17. Qg3 {[%clk 0:03:05]}  c5 {[%clk 0:02:49]} 18. f4 {[%clk 0:02:51]}  c4 {[%clk 0:02:45]} 19. Ba2 {[%clk 0:02:52]}  d5 {[%clk 0:02:41]} 20. e5 {[%clk 0:02:50]}  f5 {[%clk 0:02:38]} 21. Qf2 {[%clk 0:02:36]}  Rfe8 {[%clk 0:01:33]} 22. Qxd4 {[%clk 0:02:31]}  Qc5 {[%clk 0:01:33]} 23. Qf2 {[%clk 0:02:27]}  Qxf2+ {[%clk 0:01:28]} 24. Rxf2 {[%clk 0:02:26]}  Nc5 {[%clk 0:01:28]} 25. Rd2 {[%clk 0:02:22]}  Kf7 {[%clk 0:01:04]} 26. Red1 {[%clk 0:02:19]}  Ne6 {[%clk 0:01:01]} 27. g3 {[%clk 0:02:13]}  g5 {[%clk 0:01:01]} 28. dxc4 {[%clk 0:01:39]}  dxc4 {[%clk 0:00:59]} 29. Rd7+ {[%clk 0:01:39]}  Re7 {[%clk 0:00:59]} 30. fxg5 {[%clk 0:01:32]}  Nxg5 {[%clk 0:00:56]} 31. Kg2 {[%clk 0:01:32]}  Rc5 {[%clk 0:00:49]} 32. h4 {[%clk 0:00:56]}  Ne4 {[%clk 0:00:30]} 33. Rxe7+ {[%clk 0:00:36]}  Kxe7 {[%clk 0:00:31]} 34. Kf3 {[%clk 0:00:33]}  Rxe5 {[%clk 0:00:25]} 35. Kf4 {[%clk 0:00:32]}  Re6 {[%clk 0:00:19]} 36. a4 {[%clk 0:00:23]}  Rg6 {[%clk 0:00:16]} 37. axb5 {[%clk 0:00:22]}  axb5 {[%clk 0:00:17]} 38. Rd5 {[%clk 0:00:12]}  Nd6 {[%clk 0:00:16]} 39. b3 {[%clk 0:00:08]}  Rg4+ {[%clk 0:00:16]} 40. Kf3 {[%clk 0:00:09]}  Ke6 {[%clk 0:00:16]} 41. bxc4 {[%clk 0:00:09]}  bxc4 {[%clk 0:00:16]} 42. Rc5 {[%clk 0:00:05]}  Rd4 {[%clk 0:00:16]} 43. Rc7 {[%clk 0:00:02]}  h5 {[%clk 0:00:13]} 44. Rh7 {[%clk 0:00:03]}  Rd2 {[%clk 0:00:12]} 45. Rh6+ {[%clk 0:00:03]}  Ke5 {[%clk 0:00:12]} 46. Rxh5 {[%clk 0:00:03]}  Rxc2 {[%clk 0:00:12]} 47. Bb1 {[%clk 0:00:04]}  Rc3+ {[%clk 0:00:06]} 48. Kg2 {[%clk 0:00:04]}  Ne4 {[%clk 0:00:06]} 49. Bxe4 {[%clk 0:00:04]}  Kxe4 {[%clk 0:00:07]} 50. Rh8 {[%clk 0:00:04]}  Rc2+ {[%clk 0:00:07]} 51. Kh3 {[%clk 0:00:05]}  Rc1 {[%clk 0:00:06]} 52. Re8+ {[%clk 0:00:05]}  Kf3 {[%clk 0:00:06]} 53. Kh2 {[%clk 0:00:05]}  Rc2+ {[%clk 0:00:06]} 54. Kh3 {[%clk 0:00:04]}  Rg2 {[%clk 0:00:04]} 55. Rg8 {[%clk 0:00:05]}  c3 {[%clk 0:00:02]} 56. Rg5 {[%clk 0:00:05]}  f4 {[%clk 0:00:02]} 57. g4 {[%clk 0:00:04]}  Rg1 {[%clk 0:00:01]} 58. Kh2 {[%clk 0:00:04]}  c2 {[%clk 0:00:02]} 59. Kh3 {[%clk 0:00:01]}  c1=Q {[%clk 0:00:02]} 0-1


[Site "https://www.chess.com"]

[Event "Titled Tuesday Blitz April 18 Early 2023"]
[White "Lenderman, Aleksandr"]
[Black "Martinez Ramirez, Lennis"]
[WhiteFideId "2021285"]
[BlackFideId "3509079"]
[WhiteElo "2607"]
[BlackElo "2410"]
[Result "1/2-1/2"]
[Round "05"]
[TimeControl "180+2"]
[Date "2023.04.18"]
[WhiteClock "0:01:22"]
[BlackClock "0:00:07"]

1. Nf3 {[%clk 0:03:00]}  d5 {[%clk 0:02:58]} 2. e3 {[%clk 0:02:59]}  Nf6 {[%clk 0:02:57]} 3. c4 {[%clk 0:03:00]}  g6 {[%clk 0:02:55]} 4. cxd5 {[%clk 0:02:59]}  Nxd5 {[%clk 0:02:55]} 5. d4 {[%clk 0:02:58]}  Bg7 {[%clk 0:02:48]} 6. Be2 {[%clk 0:02:51]}  O-O {[%clk 0:02:48]} 7. O-O {[%clk 0:02:52]}  Bg4 {[%clk 0:02:28]} 8. h3 {[%clk 0:02:51]}  Bxf3 {[%clk 0:02:28]} 9. Bxf3 {[%clk 0:02:47]}  Nc6 {[%clk 0:02:27]} 10. Qb3 {[%clk 0:02:37]}  Nb6 {[%clk 0:01:38]} 11. Rd1 {[%clk 0:02:31]}  Qd6 {[%clk 0:01:35]} 12. Nc3 {[%clk 0:02:30]}  e5 {[%clk 0:01:28]} 13. Ne4 {[%clk 0:02:27]}  Qb4 {[%clk 0:01:24]} 14. Qxb4 {[%clk 0:02:21]}  Nxb4 {[%clk 0:01:25]} 15. dxe5 {[%clk 0:02:20]}  Bxe5 {[%clk 0:01:09]} 16. Nc5 {[%clk 0:02:15]}  Rfd8 {[%clk 0:01:08]} 17. Rxd8+ {[%clk 0:02:15]}  Rxd8 {[%clk 0:01:07]} 18. Nxb7 {[%clk 0:02:15]}  Rb8 {[%clk 0:01:04]} 19. Nc5 {[%clk 0:02:12]}  Bd6 {[%clk 0:00:47]} 20. Ne4 {[%clk 0:02:12]}  Be5 {[%clk 0:00:45]} 21. Bd2 {[%clk 0:02:10]}  Nd3 {[%clk 0:00:42]} 22. Bc3 {[%clk 0:02:08]}  Bxc3 {[%clk 0:00:31]} 23. bxc3 {[%clk 0:02:09]}  Na4 {[%clk 0:00:31]} 24. Be2 {[%clk 0:02:04]}  Ndc5 {[%clk 0:00:25]} 25. Nxc5 {[%clk 0:02:03]}  Nxc5 {[%clk 0:00:26]} 26. Rd1 {[%clk 0:02:02]}  Rb2 {[%clk 0:00:26]} 27. Bc4 {[%clk 0:02:02]}  Rc2 {[%clk 0:00:18]} 28. Rd5 {[%clk 0:02:02]}  Ne6 {[%clk 0:00:17]} 29. Ra5 {[%clk 0:01:56]}  Rxc3 {[%clk 0:00:16]} 30. Bxe6 {[%clk 0:01:56]}  fxe6 {[%clk 0:00:17]} 31. Rxa7 {[%clk 0:01:57]}  Kf7 {[%clk 0:00:17]} 32. a4 {[%clk 0:01:54]}  Rc1+ {[%clk 0:00:17]} 33. Kh2 {[%clk 0:01:54]}  Ke7 {[%clk 0:00:17]} 34. Ra8 {[%clk 0:01:53]}  Kd6 {[%clk 0:00:16]} 35. Rd8+ {[%clk 0:01:52]}  Ke5 {[%clk 0:00:16]} 36. Rd7 {[%clk 0:01:52]}  c5 {[%clk 0:00:16]} 37. Rxh7 {[%clk 0:01:34]}  Ra1 {[%clk 0:00:15]} 38. Rh4 {[%clk 0:01:32]}  Kd5 {[%clk 0:00:15]} 39. Rg4 {[%clk 0:01:32]}  c4 {[%clk 0:00:16]} 40. Rg5+ {[%clk 0:01:27]}  e5 {[%clk 0:00:16]} 41. f4 {[%clk 0:01:27]}  c3 {[%clk 0:00:16]} 42. Rxe5+ {[%clk 0:01:27]}  Kc4 {[%clk 0:00:15]} 43. Re8 {[%clk 0:01:25]}  c2 {[%clk 0:00:15]} 44. Rc8+ {[%clk 0:01:26]}  Kd3 {[%clk 0:00:15]} 45. Kg3 {[%clk 0:01:21]}  c1=Q {[%clk 0:00:15]} 46. Rxc1 {[%clk 0:01:21]}  Rxc1 {[%clk 0:00:14]} 47. Kg4 {[%clk 0:01:22]}  Kxe3 {[%clk 0:00:14]} 48. Kg5 {[%clk 0:01:23]}  Rc4 {[%clk 0:00:11]} 49. g3 {[%clk 0:01:21]}  Kf3 {[%clk 0:00:12]} 50. Kxg6 {[%clk 0:01:22]}  Kxg3 {[%clk 0:00:11]} 51. f5 {[%clk 0:01:22]}  Rxa4 {[%clk 0:00:11]} 52. f6 {[%clk 0:01:22]}  Ra6 {[%clk 0:00:10]} 53. Kg7 {[%clk 0:01:21]}  Kxh3 {[%clk 0:00:06]} 54. f7 {[%clk 0:01:21]}  Ra7 {[%clk 0:00:07]} 55. Kg8 {[%clk 0:01:21]}  Rxf7 {[%clk 0:00:07]} 56. Kxf7 {[%clk 0:01:22]} 1/2-1/2


[Site "https://www.chess.com"]

[Event "Titled Tuesday Blitz April 18 Early 2023"]
[White "Bocharov, Dmitry"]
[Black "Zhigalko_Sergei"]
[WhiteFideId "4138716"]
[WhiteElo "2469"]
[BlackElo "2925"]
[Result "1-0"]
[Round "05"]
[TimeControl "180+2"]
[Date "2023.04.18"]
[WhiteClock "0:00:27"]
[BlackClock "0:00:02"]

1. d4 {[%clk 0:03:00]}  Nf6 {[%clk 0:02:59]} 2. c4 {[%clk 0:03:00]}  e6 {[%clk 0:03:00]} 3. g3 {[%clk 0:02:59]}  c5 {[%clk 0:03:00]} 4. d5 {[%clk 0:02:58]}  exd5 {[%clk 0:03:01]} 5. cxd5 {[%clk 0:02:59]}  d6 {[%clk 0:03:01]} 6. Nc3 {[%clk 0:02:58]}  g6 {[%clk 0:03:02]} 7. Bg2 {[%clk 0:02:59]}  Bg7 {[%clk 0:03:03]} 8. Nf3 {[%clk 0:02:59]}  O-O {[%clk 0:03:03]} 9. O-O {[%clk 0:02:59]}  Re8 {[%clk 0:03:04]} 10. Bf4 {[%clk 0:02:59]}  a6 {[%clk 0:03:03]} 11. a4 {[%clk 0:02:58]}  Nh5 {[%clk 0:03:03]} 12. Bg5 {[%clk 0:02:56]}  Qc7 {[%clk 0:03:04]} 13. Qd2 {[%clk 0:02:51]}  Nd7 {[%clk 0:03:04]} 14. Bh6 {[%clk 0:02:49]}  Bh8 {[%clk 0:03:04]} 15. e4 {[%clk 0:02:49]}  Rb8 {[%clk 0:03:03]} 16. a5 {[%clk 0:02:42]}  b5 {[%clk 0:03:02]} 17. axb6 {[%clk 0:02:42]}  Rxb6 {[%clk 0:02:48]} 18. Qc2 {[%clk 0:02:40]}  Qb8 {[%clk 0:02:46]} 19. Rab1 {[%clk 0:02:36]}  Rb4 {[%clk 0:02:44]} 20. h3 {[%clk 0:02:29]}  Nhf6 {[%clk 0:02:36]} 21. Nd2 {[%clk 0:02:25]}  Ne5 {[%clk 0:02:30]} 22. b3 {[%clk 0:02:04]}  a5 {[%clk 0:01:57]} 23. Na2 {[%clk 0:02:01]}  Ba6 {[%clk 0:00:59]} 24. Nxb4 {[%clk 0:01:58]}  cxb4 {[%clk 0:00:55]} 25. Rfc1 {[%clk 0:01:47]}  Bd3 {[%clk 0:00:53]} 26. Qa2 {[%clk 0:01:47]}  Bxb1 {[%clk 0:00:53]} 27. Qxb1 {[%clk 0:01:47]}  Rc8 {[%clk 0:00:19]} 28. Rxc8+ {[%clk 0:01:46]}  Qxc8 {[%clk 0:00:20]} 29. Qa2 {[%clk 0:01:46]}  Qc7 {[%clk 0:00:13]} 30. Bf1 {[%clk 0:01:44]}  Bg7 {[%clk 0:00:12]} 31. Be3 {[%clk 0:01:41]}  h5 {[%clk 0:00:11]} 32. Qa4 {[%clk 0:01:36]}  Nfd7 {[%clk 0:00:07]} 33. Kg2 {[%clk 0:01:24]}  Nc5 {[%clk 0:00:06]} 34. Qb5 {[%clk 0:01:19]}  Bf6 {[%clk 0:00:04]} 35. Bxc5 {[%clk 0:01:12]}  dxc5 {[%clk 0:00:03]} 36. f4 {[%clk 0:01:11]}  h4 {[%clk 0:00:02]} 37. fxe5 {[%clk 0:01:01]}  Qxe5 {[%clk 0:00:03]} 38. Qd3 {[%clk 0:01:01]}  hxg3 {[%clk 0:00:03]} 39. Nc4 {[%clk 0:01:00]}  Qa1 {[%clk 0:00:02]} 40. d6 {[%clk 0:00:47]}  a4 {[%clk 0:00:03]} 41. bxa4 {[%clk 0:00:42]}  Qe1 {[%clk 0:00:04]} 42. Qe2 {[%clk 0:00:39]}  Qc3 {[%clk 0:00:04]} 43. e5 {[%clk 0:00:39]}  Bd8 {[%clk 0:00:03]} 44. a5 {[%clk 0:00:32]}  b3 {[%clk 0:00:03]} 45. a6 {[%clk 0:00:32]}  Qa1 {[%clk 0:00:01]} 46. e6 {[%clk 0:00:29]}  Qa2 {[%clk 0:00:01]} 47. e7 {[%clk 0:00:27]}  Bxe7 {[%clk 0:00:02]} 48. dxe7 {[%clk 0:00:27]} 1-0


[Site "https://www.chess.com"]

[Event "Titled Tuesday Blitz April 18 Early 2023"]
[White "Chigaev, Maksim"]
[Black "Aaditya Dhingra"]
[WhiteFideId "4108116"]
[BlackFideId "25678191"]
[WhiteElo "2547"]
[BlackElo "2083"]
[Result "1-0"]
[Round "05"]
[TimeControl "180+2"]
[Date "2023.04.18"]
[WhiteClock "0:02:19"]
[BlackClock "0:02:25"]

1. e4 {[%clk 0:03:00]}  c5 {[%clk 0:02:58]} 2. Nf3 {[%clk 0:03:00]}  Nc6 {[%clk 0:02:58]} 3. Bb5 {[%clk 0:02:58]}  e5 {[%clk 0:02:57]} 4. O-O {[%clk 0:02:54]}  Bd6 {[%clk 0:02:56]} 5. c3 {[%clk 0:02:52]}  a6 {[%clk 0:02:50]} 6. Bxc6 {[%clk 0:02:51]}  dxc6 {[%clk 0:02:50]} 7. d4 {[%clk 0:02:51]}  cxd4 {[%clk 0:02:50]} 8. cxd4 {[%clk 0:02:52]}  exd4 {[%clk 0:02:49]} 9. Qxd4 {[%clk 0:02:53]}  f6 {[%clk 0:02:43]} 10. Nc3 {[%clk 0:02:51]}  Nh6 {[%clk 0:02:39]} 11. Bxh6 {[%clk 0:02:37]}  gxh6 {[%clk 0:02:40]} 12. e5 {[%clk 0:02:36]}  Be7 {[%clk 0:02:37]} 13. Qc4 {[%clk 0:02:23]}  Kf8 {[%clk 0:02:28]} 14. Rad1 {[%clk 0:02:23]}  Qc7 {[%clk 0:02:25]} 15. Nd5 {[%clk 0:02:19]} 1-0


[Site "https://www.chess.com"]